lending/lending_fUSD_20240401
["ID","MTS","AMOUNT","RATE_DAILY","PERIOD"]
[321175247,1711938637830,-575.37194561,0.0004949,10]
[321175248,1711938637950,-209.56415495,0.0004949,10]
[321175249,1711938637961,-163.63,0.000501,6]
[321175250,1711938637971,-163.63,0.000501,6]
[321175251,1711938637984,-163.63,0.000501,6]
[321175252,1711938637995,-163.63,0.000501,6]
[321175253,1711938638006,-163.63,0.000501,6]
[321175254,1711938638018,-163.63,0.000501,6]
[321175256,1711938638028,-163.63,0.000501,6]
[321175258,1711938638040,-163.63,0.000501,6]
[321175260,1711938638050,-163.63,0.000501,6]
[321175261,1711938638059,-163.63,0.000501,6]
[321175262,1711938638069,-163.63,0.000501,6]
[321175263,1711938638078,-33.56974628,0.000501,6]
[321175264,1711938638098,-130.06025372,0.000501,6]
[321175265,1711938638109,-163.63,0.000501,6]
[321175266,1711938638120,-163.63,0.000501,6]
[321175267,1711938638130,-163.63,0.000501,6]
[321175268,1711938638140,-163.63,0.000501,6]
[321175269,1711938638152,-163.63,0.000501,6]
[321175270,1711938638163,-163.63,0.000501,6]
[321175271,1711938638174,-163.63,0.000501,6]
[321175272,1711938638184,-163.63,0.000501,6]
[321175273,1711938638196,-2070.0,0.00053228,117]
[321175274,1711938638207,-152.0,0.00054958,3]
[321175275,1711938638217,-163.63,0.000552,8]
[321175276,1711938638227,-163.63,0.000552,8]
[321175277,1711938638237,-163.63,0.000552,8]
[321175278,1711938638248,-163.63,0.000552,8]
[321175279,1711938638258,-163.63,0.000552,8]
[321175280,1711938638268,-163.63,0.000552,8]
[321175281,1711938638279,-163.63,0.000552,8]
[321175282,1711938638289,-163.63,0.000552,8]
[321175283,1711938638299,-163.63,0.000552,8]
[321175284,1711938638310,-163.63,0.000552,8]
[321175285,1711938638321,-163.63,0.000552,8]
[321175286,1711938638332,-163.63,0.000552,8]
[321175287,1711938638343,-163.63,0.000552,8]
[321175288,1711938638354,-163.63,0.000552,8]
[321175289,1711938638365,-163.63,0.000552,8]
[321175290,1711938638376,-163.63,0.000552,8]
[321175291,1711938638387,-163.63,0.000552,8]
[321175292,1711938638398,-163.63,0.000552,8]
[321175293,1711938638408,-163.63,0.000552,8]
[321175294,1711938638418,-163.63,0.000552,8]
[321175295,1711938638427,-287.89,0.00055816,2]
[321175296,1711938638439,-287.25,0.00057465,2]
[321175297,1711938638449,-1488.81734261,0.000575,7]
[321175298,1711938638462,-1376.69684566,0.000575,7]
[321175299,1711938638472,-282.44,0.000575,30]
[321175300,1711938638483,-502.66,0.00057529,120]
[321175301,1711938638493,-156.54,0.00057644,2]
[321175302,1711938638509,-904.0,0.00057659,120]
[321175303,1711938638519,-159.88,0.00057806,120]
[321175304,1711938638529,-160.0,0.00057841,120]
[321175305,1711938638539,-152.0,0.00057868,4]
[321175306,1711938638550,-287.89,0.00058079,2]
[321175307,1711938638560,-174.56,0.0005885,120]
[321175308,1711938638570,-909.72288014,0.00059,120]
[321175309,1711938638583,-166.10888135,0.000593,120]
[321175310,1711938638595,-334.019,0.00059711,120]
[321175311,1711938638607,-259.259,0.000598,2]
[321175312,1711938638618,-172.30139285,0.000598,39]
[321175313,1711938638638,-2671.75918662,0.000598,39]
[321175314,1711938638650,-3971.59567299,0.000598,2]
[321175315,1711938638659,-173.90200429,0.000598,14]
[321175316,1711938638669,-8653.60834992,0.000598,2]
[321175317,1711938638680,-5000.0,0.00059818,3]
[321175318,1711938638691,-172.69,0.0005989,30]
[321175319,1711938638700,-198.70729204,0.0005989,7]
[321175320,1711938638710,-151.040111,0.00059894,120]
[321175321,1711938638721,-181.04011,0.00059896,120]
[321175322,1711938638732,-5075.92962817,0.00059897,2]
[321175323,1711938638743,-178.90728085,0.00059898,4]
[321175324,1711938638753,-1139.29564314,0.00059898,4]
[321175325,1711938638763,-155.55855632,0.00059898,4]
[321175326,1711938638773,-6501.62202631,0.00059899,120]
[321175327,1711938638783,-556.24052441,0.00059899,120]
[321175328,1711938638792,-500.0,0.00059899,120]
[321175329,1711938638802,-427.6,0.00059899,120]
[321175330,1711938638812,-500.0,0.00059899,120]
[321175331,1711938638824,-500.0,0.00059899,120]
[321175332,1711938638835,-327.71950314,0.00059899,120]
[321175333,1711938638847,-513.66955502,0.00059899,120]
[321175334,1711938638857,-372.61481554,0.00059899,120]
[321175335,1711938638867,-500.0,0.00059899,120]
[321175336,1711938638877,-370.45656802,0.00059899,120]
[321175337,1711938638886,-500.0,0.00059899,120]
[321175338,1711938638898,-506.38468549,0.00059899,120]
[321175339,1711938638910,-338.55628687,0.00059899,120]
[321175340,1711938638920,-541.69303048,0.00059899,120]
[321175341,1711938638930,-519.37629748,0.00059899,120]
[321175342,1711938638940,-451.24822908,0.00059899,120]
[321175343,1711938638951,-309.81648502,0.00059899,120]
[321175344,1711938638963,-555.49430982,0.00059899,120]
[321175345,1711938638972,-188.71408719,0.00059899,120]
[321175346,1711938638982,-260.92221707,0.00059899,120]
[321175347,1711938638992,-354.62032769,0.00059899,120]
[321175348,1711938639002,-514.52566689,0.00059899,120]
[321175349,1711938639012,-495.25525284,0.00059899,120]
[321175350,1711938639022,-155.67762106,0.00059899,120]
[321175351,1711938639032,-521.18614165,0.00059899,120]
[321175352,1711938639043,-539.21217589,0.00059899,120]
[321175353,1711938639053,-526.39931274,0.00059899,120]
[321175354,1711938639063,-500.0,0.00059899,120]
[321175355,1711938639074,-522.44583148,0.00059899,120]
[321175356,1711938639084,-196.77573479,0.00059899,120]
[321175357,1711938639094,-533.99030637,0.00059899,120]
[321175358,1711938639104,-530.78111864,0.00059899,120]
[321175359,1711938639115,-507.92300346,0.00059899,2]
[321175360,1711938639125,-203.35512587,0.00059899,120]
[321175361,1711938639137,-500.0,0.00059899,120]
[321175362,1711938639149,-500.0,0.00059899,120]
[321175363,1711938639159,-347.83090992,0.00059899,120]
[321175364,1711938639169,-500.0,0.00059899,120]
[321175365,1711938639179,-500.0,0.00059899,120]
[321175366,1711938639190,-493.55721065,0.00059899,120]
[321175368,1711938639200,-500.0,0.00059899,30]
[321175370,1711938639210,-522.76594571,0.00059899,120]
[321175372,1711938639220,-569.31183924,0.00059899,120]
[321175374,1711938639229,-548.22746175,0.00059899,120]
[321175376,1711938639240,-500.0,0.00059899,120]
[321175378,1711938639250,-500.0,0.00059899,120]
[321175380,1711938639260,-500.0,0.00059899,120]
[321175382,1711938639270,-397.82093769,0.00059899,120]
[321175384,1711938639280,-150.0,0.00059899,120]
[321175386,1711938639290,-500.0,0.00059899,120]
[321175388,1711938639300,-612.43,0.00059899,120]
[321175390,1711938639310,-574.65873215,0.00059899,120]
[321175392,1711938639320,-576.38373277,0.00059899,120]
[321175393,1711938639332,-194.89263736,0.00059899,120]
[321175394,1711938639343,-585.17906628,0.00059899,120]
[321175395,1711938639353,-500.0,0.00059899,120]
[321175396,1711938639363,-641.12471541,0.00059899,120]
[321175397,1711938639373,-500.0,0.00059899,120]
[321175398,1711938639383,-500.0,0.00059899,120]
[321175399,1711938639393,-579.5313576,0.00059899,120]
[321175400,1711938639404,-578.23124118,0.00059899,120]
[321175401,1711938639414,-500.0,0.00059899,120]
[321175402,1711938639425,-242.72790937,0.00059899,120]
[321175403,1711938639437,-434.84387336,0.00059899,120]
[321175404,1711938639448,-579.03175819,0.00059899,120]
[321175405,1711938639461,-176.27132,0.00059899,96]
[321175406,1711938639471,-317.56395446,0.00059899,120]
[321175407,1711938639482,-500.0,0.00059899,120]
[321175408,1711938639493,-500.0,0.00059899,120]
[321175409,1711938639506,-360.85971819,0.00059899,120]
[321175410,1711938639516,-500.0,0.00059899,120]
[321175411,1711938639526,-500.0,0.00059899,120]
[321175412,1711938639535,-500.0,0.00059899,120]
[321175413,1711938639735,-500.0,0.00059899,120]
[321175414,1711938639749,-500.0,0.00059899,120]
[321175415,1711938639758,-280.6647894,0.00059899,120]
[321175416,1711938639768,-500.0,0.00059899,120]
[321175417,1711938639777,-500.0,0.00059899,120]
[321175418,1711938639786,-2206.42,0.00059899,120]
[321175419,1711938639797,-500.0,0.00059899,120]
[321175420,1711938639807,-500.0,0.00059899,120]
[321175421,1711938639818,-546.96942552,0.00059899,120]
[321175422,1711938639828,-500.0,0.00059899,120]
[321175423,1711938639838,-500.0,0.00059899,120]
[321175424,1711938639847,-613.99,0.00059899,120]
[321175425,1711938639858,-1394.64,0.00059899,120]
[321175426,1711938639866,-500.0,0.00059899,120]
[321175427,1711938639876,-583.02465154,0.00059899,120]
[321175428,1711938639885,-500.0,0.00059899,120]
[321175429,1711938639896,-500.0,0.00059899,120]
[321175430,1711938639906,-500.0,0.00059899,120]
[321175431,1711938639915,-500.0,0.00059899,120]
[321175432,1711938639923,-2158.44,0.00059899,120]
[321175433,1711938639933,-500.0,0.00059899,120]
[321175434,1711938639943,-500.0,0.00059899,120]
[321175435,1711938639953,-500.0,0.00059899,120]
[321175436,1711938639963,-500.0,0.00059899,120]
[321175437,1711938639971,-578.19802689,0.00059899,120]
[321175438,1711938639980,-926.54,0.00059899,120]
[321175439,1711938639992,-560.68585785,0.00059899,120]
[321175440,1711938640001,-500.0,0.00059899,120]
[321175441,1711938640011,-500.0,0.00059899,120]
[321175442,1711938640020,-565.40021195,0.00059899,120]
[321175443,1711938640030,-500.0,0.00059899,120]
[321175444,1711938640039,-500.0,0.00059899,120]
[321175445,1711938640048,-500.0,0.00059899,120]
[321175446,1711938640057,-499.56480919,0.00059899,120]
[321175447,1711938640066,-500.0,0.00059899,120]
[321175448,1711938640075,-500.0,0.00059899,120]
[321175449,1711938640084,-250.32038916,0.00059899,120]
[321175450,1711938640094,-500.0,0.00059899,120]
[321175451,1711938640102,-500.0,0.00059899,120]
[321175452,1711938640112,-500.0,0.00059899,120]
[321175453,1711938640121,-1377.55,0.00059899,120]
[321175454,1711938640130,-2042.78,0.00059899,120]
[321175455,1711938640139,-511.99,0.00059899,120]
[321175456,1711938640148,-636.59875897,0.00059899,120]
[321175457,1711938640157,-286.12440427,0.00059899,120]
[321175458,1711938640166,-500.0,0.00059899,120]
[321175459,1711938640175,-411.20918963,0.00059899,120]
[321175460,1711938640184,-677.02,0.00059899,120]
[321175461,1711938640193,-836.67,0.00059899,120]
[321175462,1711938640202,-713.18,0.00059899,120]
[321175463,1711938640210,-566.08,0.00059899,21]
[321175464,1711938640220,-350.53417613,0.00059899,120]
[321175465,1711938640229,-500.0,0.00059899,120]
[321175466,1711938640238,-911.2,0.00059899,120]
[321175467,1711938640246,-827.19,0.00059899,120]
[321175468,1711938640256,-500.0,0.00059899,120]
[321175469,1711938640265,-500.0,0.00059899,120]
[321175470,1711938640274,-526.13,0.00059899,120]
[321175471,1711938640283,-2258.93,0.00059899,120]
[321175472,1711938640292,-500.0,0.00059899,120]
[321175473,1711938640301,-500.0,0.00059899,120]
[321175474,1711938640310,-500.0,0.00059899,120]
[321175475,1711938640319,-500.0,0.00059899,120]
[321175476,1711938640328,-500.0,0.00059899,120]
[321175477,1711938640337,-500.0,0.00059899,120]
[321175478,1711938640346,-500.0,0.00059899,120]
[321175479,1711938640355,-500.0,0.00059899,120]
[321175480,1711938640364,-500.0,0.00059899,120]
[321175481,1711938640373,-1263.88,0.00059899,120]
[321175482,1711938640382,-500.0,0.00059899,120]
[321175483,1711938640391,-500.0,0.00059899,120]
[321175484,1711938640400,-500.0,0.00059899,120]
[321175485,1711938640409,-500.0,0.00059899,120]
[321175486,1711938640418,-500.0,0.00059899,120]
[321175487,1711938640428,-503.51903334,0.00059899,120]
[321175488,1711938640437,-913.36,0.00059899,120]
[321175489,1711938640446,-500.0,0.00059899,120]
[321175490,1711938640455,-500.0,0.00059899,120]
[321175491,1711938640466,-500.0,0.00059899,120]
[321175492,1711938640477,-530.95136643,0.00059899,120]
[321175493,1711938640486,-500.0,0.00059899,120]
[321175494,1711938640496,-500.0,0.00059899,120]
[321175495,1711938640506,-842.07,0.00059899,120]
[321175496,1711938640520,-521.83159561,0.00059899,120]
[321175497,1711938640529,-506.38062088,0.00059899,120]
[321175498,1711938640540,-604180.53111951,0.000599,26]
[321175499,1711938640550,-840.4465758,0.000599,120]
[321175500,1711938640560,-5723.19529765,0.000599,4]
[321175501,1711938640569,-840.44974393,0.000599,2]
[321175502,1711938640580,-391.0,0.000599,30]
[321175503,1711938640592,-367.04692693,0.000599,4]
[321175504,1711938640603,-278715.47921547,0.000599,26]
[321175505,1711938640689,-500.0,0.00059899,120]
[321175506,1711938640698,-2540.14499984,0.000599,26]
[321175507,1711938640714,-310.27304847,0.000599,26]
[321175568,1711939837678,-155.0,0.00032999,4]
[321175569,1711939837687,-218.02652194,0.00033,3]
[321175574,1711939838005,-131.97347806,0.00033,3]
[321175575,1711939838014,-400.0,0.00035,3]
[321175576,1711939838023,-450.0,0.00037,3]
[321175577,1711939838033,-155.79,0.00037808,2]
[321175578,1711939838042,-214.81,0.00041096,2]
[321175579,1711939838052,-1773.40926319,0.00042999,4]
[321175586,1711939840809,-511.99637956,0.00042999,4]
[321175587,1711939840821,-522.35943442,0.00042999,4]
[321175588,1711939840937,-4.598e-05,0.00042999,4]
[321175590,1711939842911,-4576.74876079,0.00042999,4]
[321175591,1711939842924,-1839.00162823,0.00042999,4]
[321175592,1711939842934,-1647.03654138,0.00043,5]
[321175602,1711939889313,493.2636957,0.00042861,30]
[321175603,1711939893998,950.61790423,0.00022,2]
[321175604,1711939959796,223.43812855,0.0002211,2]
[321175605,1711939975113,7707.03426081,0.00022,2]
[321175606,1711940025690,3713.21750038,0.0002,2]
[321175607,1711940034664,6653.0,0.0002,2]
[321175608,1711940036825,1648.2764458,0.000181,2]
[321175609,1711940038755,1147349.83793746,0.00025,2]
[321175610,1711940040192,35079.97244268,0.0003,2]
[321175611,1711940071317,1275.53147739,0.0001899,2]
[321175612,1711940402443,150.0,0.0001899,2]
[321175613,1711940402649,150.0,0.0001899,2]
[321175614,1711940402855,150.0,0.0001899,2]
[321175615,1711940403059,150.0,0.0001899,2]
[321175616,1711940403284,150.0,0.0001899,2]
[321175617,1711940403557,150.0,0.0001899,2]
[321175618,1711940403758,150.0,0.0001899,2]
[321175619,1711940404132,150.0,0.0001899,2]
[321175620,1711940404181,150.0,0.0001899,2]
[321175621,1711940404373,150.0,0.0001899,2]
[321175622,1711940405875,150.0,0.0001899,2]
[321175623,1711940406180,150.0,0.0001899,2]
[321175624,1711940406464,150.0,0.0001899,2]
[321175625,1711940406679,150.0,0.0001899,2]
[321175626,1711940406853,150.0,0.0001899,2]
[321175627,1711940407036,150.0,0.0001899,2]
[321175628,1711940407436,150.0,0.0001899,2]
[321175629,1711940407614,150.0,0.0001899,2]
[321175630,1711940407831,150.0,0.0001899,2]
[321175631,1711940408004,150.0,0.0001899,2]
[321175632,1711940408181,150.0,0.0001899,2]
[321175633,1711940408342,150.0,0.0001899,2]
[321175634,1711940408558,150.0,0.0001899,2]
[321175635,1711940408769,150.0,0.0001899,2]
[321175636,1711940408942,150.0,0.0001899,2]
[321175637,1711940409123,150.0,0.0001899,2]
[321175638,1711940409348,150.0,0.0001899,2]
[321175639,1711940409611,150.0,0.0001899,2]
[321175640,1711940409922,150.0,0.0001899,2]
[321175641,1711940410118,150.0,0.0001899,2]
[321175642,1711940410305,150.0,0.0001899,2]
[321175643,1711940410486,186.6273164,0.0001899,2]
[321175644,1711940428045,262.34359,0.0001899,2]
[321175645,1711940428097,262.3436,0.0002399,2]
[321175646,1711940428151,262.3436,0.0002899,2]
[321175647,1711940747055,157.40616,0.0002899,2]
[321175690,1711941031886,-257.63110528,0.00033973,4]
[321175694,1711941031897,-108.33262307,0.00033973,4]
[321175697,1711941031906,-327.92370361,0.00033974,2]
[321175699,1711941031917,-672.07629639,0.00033974,2]
[321175702,1711941031927,-387.17917666,0.00033986,4]
[321175710,1711941031996,-309.31034047,0.00033986,4]
[321175712,1711941032008,-465.61033262,0.00033986,4]
[321175723,1711941032109,-385.47278482,0.00033986,4]
[321175725,1711941032118,-157.40616,0.0003399,2]
[321175728,1711941032128,-503.02879879,0.000367,2]
[321175730,1711941032138,-3297.49383323,0.00037,4]
[321175732,1711941032149,-1290.90309334,0.00037,4]
[321175734,1711941032168,-253.92241788,0.00037,4]
[321175736,1711941032179,-661.49483892,0.00037,4]
[321175738,1711941032188,-158.86839836,0.00037708,2]
[321175740,1711941032198,-157.02,0.00037808,2]
[321175742,1711941032209,-155.98,0.00037808,2]
[321175744,1711941032218,-156.54,0.00037808,2]
[321175746,1711941032228,-157.40616,0.0003899,2]
[321175748,1711941032238,-826.33625214,0.00039989,2]
[321175749,1711941032248,-9999.99,0.00039989,2]
[321175751,1711941032257,-7763.68879103,0.0003999,2]
[321175753,1711941032269,-68945.44315407,0.0003999,2]
[321175755,1711941032280,-150.99,0.0003999,2]
[321175758,1711941032289,-156.42,0.00041096,2]
[321175761,1711941032298,-152.34,0.000428,4]
[321175764,1711941032307,-152.34,0.000428,4]
[321175767,1711941032319,-152.34,0.000428,4]
[321175770,1711941032329,-152.34,0.000428,4]
[321175773,1711941032338,-152.34,0.000428,4]
[321175776,1711941032347,-152.34,0.000428,4]
[321175782,1711941032414,-152.34,0.000428,4]
[321175785,1711941032423,-152.34,0.000428,4]
[321175791,1711941032438,-9371.05015162,0.00043,5]
[321175795,1711941032447,-157.40616,0.0004399,2]
[321175799,1711941032457,-155.79,0.00046073,2]
[321175803,1711941032467,-354.28165732,0.0004793,4]
[321175807,1711941032477,-6241.05,0.00048348,2]
[321175810,1711941032487,-28745.08,0.00048348,2]
[321175813,1711941032496,-152.34,0.000484,6]
[321175816,1711941032506,-152.34,0.000484,6]
[321175819,1711941032516,-152.34,0.000484,6]
[321175822,1711941032525,-152.34,0.000484,6]
[321175825,1711941032535,-152.34,0.000484,6]
[321175828,1711941032545,-152.34,0.000484,6]
[321175831,1711941032554,-152.34,0.000484,6]
[321175835,1711941032564,-152.34,0.000484,6]
[321175839,1711941032574,-527.45,0.00048513,2]
[321175842,1711941032583,-158.86839836,0.00048761,2]
[321175845,1711941032593,-159.88,0.00048921,15]
[321175848,1711941032603,-2505.65,0.00048954,2]
[321175851,1711941032612,-1382.47,0.00048976,2]
[321175853,1711941032622,-157.40616,0.0004899,2]
[321175855,1711941032631,-200.27,0.00049005,2]
[321175857,1711941032641,-1066.14,0.00049073,2]
[321175859,1711941032650,-150.0,0.00049443,2]
[321175861,1711941032661,-175.65,0.00049541,2]
[321175863,1711941032670,-4172.4781186,0.00051553,2]
[321175865,1711941032680,-193.77699549,0.00051653,60]
[321175867,1711941032689,-1382.47,0.00051716,2]
[321175869,1711941032698,-156.54,0.00051977,2]
[321175871,1711941032707,-155.88,0.00052427,120]
[321175873,1711941032717,-9909.65377857,0.00052498,2]
[321175875,1711941032726,-359.23,0.00052598,2]
[321175877,1711941032735,-174.56,0.00052756,120]
[321175879,1711941032745,-10231.59,0.00053208,2]
[321175881,1711941032755,-4172.47811852,0.00053214,2]
[321175884,1711941032765,-179.0,0.00053931,2]
[321175885,1711941032775,-1025.48,0.00053931,2]
[321175888,1711941032786,-250.0,0.0005405,120]
[321175890,1711941032796,-9909.65377854,0.00054054,2]
[321175892,1711941032807,-152.34,0.000541,7]
[321175893,1711941032818,-152.34,0.000541,7]
[321175896,1711941032828,-152.34,0.000541,7]
[321175898,1711941032839,-152.34,0.000541,7]
[321175900,1711941032849,-152.34,0.000541,7]
[321175902,1711941032860,-152.34,0.000541,7]
[321175904,1711941032870,-152.34,0.000541,7]
[321175905,1711941032879,-152.34,0.000541,7]
[321175906,1711941032890,-421.69,0.00054247,2]
[321175907,1711941032900,-155.79,0.00054338,2]
[321175908,1711941032910,-421.69,0.00054396,2]
[321175909,1711941032923,-1382.47,0.00054455,2]
[321175910,1711941032934,-250.0,0.00054516,120]
[321175911,1711941032945,-421.69,0.00054545,2]
[321175912,1711941032955,-2203.82,0.00054548,2]
[321175913,1711941032966,-268.68130135,0.00054572,120]
[321175914,1711941032977,-23890.0,0.00054573,2]
[321175915,1711941032988,-723.2,0.00054605,120]
[321175916,1711941032999,-421.69,0.00054693,2]
[321175917,1711941033010,-159.88,0.00054792,120]
[321175918,1711941033022,-421.69,0.00054842,2]
[321175919,1711941033033,-359.23,0.00054862,2]
[321175920,1711941033043,-4172.47811852,0.00054875,2]
[321175921,1711941033053,-421.69,0.00054991,2]
[321175922,1711941033062,-421.69,0.0005514,2]
[321175923,1711941033073,-421.69,0.00055288,2]
[321175924,1711941033085,-421.69,0.00055437,2]
[321175925,1711941033097,-421.69,0.00055586,2]
[321175926,1711941033109,-9909.65377854,0.0005561,2]
[321175927,1711941033122,-901.98,0.0005564,120]
[321175928,1711941033132,-360.43,0.00055657,120]
[321175929,1711941033142,-421.69,0.00055735,2]
[321175930,1711941033152,-421.69,0.00055883,2]
[321175931,1711941033162,-150.0,0.0005591,30]
[321175932,1711941033172,-152.0,0.00055928,3]
[321175933,1711941033182,-421.69,0.00056032,2]
[321175934,1711941033193,-421.69,0.00056181,2]
[321175935,1711941033204,-421.69,0.0005633,2]
[321175936,1711941033214,-399.49690961,0.00056478,2]
[321175949,1711941037843,-22.19309039,0.00056478,2]
[321175950,1711941037852,-165.88,0.00056505,30]
[321175951,1711941037861,-500.0,0.00056515,120]
[321175952,1711941037870,-437.57107587,0.00056515,120]
[321175953,1711941038032,-62.42892413,0.00056515,120]
[321175954,1711941038041,-500.0,0.00056515,120]
[321175955,1711941038050,-500.0,0.00056515,120]
[321175956,1711941038059,-500.0,0.00056515,120]
[321175957,1711941038068,-1437.57107587,0.00056515,120]
[321175958,1711941038090,-33.03892413,0.00056515,120]
[321175959,1711941038100,-500.0,0.00056515,120]
[321175960,1711941038109,-500.0,0.00056515,120]
[321175961,1711941038120,-507.85,0.00056515,120]
[321175962,1711941038130,-1747.16,0.00056515,120]
[321175963,1711941038140,-500.0,0.00056515,120]
[321175964,1711941038150,-500.0,0.00056515,120]
[321175965,1711941038159,-500.0,0.00056515,120]
[321175966,1711941038170,-500.0,0.00056515,120]
[321175967,1711941038180,-940.97,0.00056515,120]
[321175968,1711941038189,-500.0,0.00056515,120]
[321175969,1711941038198,-432.06954218,0.00056515,120]
[321175970,1711941038212,-264.95045782,0.00056515,120]
[321175971,1711941038225,-500.0,0.00056515,120]
[321175972,1711941038235,-767.63,0.00056515,120]
[321175973,1711941038249,-500.0,0.00056515,120]
[321175974,1711941038259,-500.0,0.00056515,120]
[321175975,1711941038270,-1289.93,0.00056515,120]
[321175976,1711941038279,-502.12,0.00056515,120]
[321175977,1711941038289,-500.0,0.00056515,120]
[321175978,1711941038298,-314.75347994,0.00056515,120]
[321175979,1711941038307,-267.26360392,0.00056515,120]
[321175980,1711941038320,-232.73639608,0.00056515,120]
[321175981,1711941038329,-500.0,0.00056515,120]
[321175982,1711941038338,-500.0,0.00056515,120]
[321175983,1711941038347,-588.60100819,0.00056515,120]
[321175984,1711941038357,-2848.73,0.00056515,120]
[321175985,1711941038365,-500.0,0.00056515,120]
[321175986,1711941038375,-500.0,0.00056515,120]
[321175987,1711941038385,-500.0,0.00056515,120]
[321175988,1711941038395,-500.0,0.00056515,120]
[321175989,1711941038404,-500.0,0.00056515,120]
[321175990,1711941038413,-500.0,0.00056515,120]
[321175991,1711941038422,-500.0,0.00056515,120]
[321175992,1711941038431,-500.0,0.00056515,120]
[321175993,1711941038440,-589.06288233,0.00056515,120]
[321175995,1711941038449,-500.0,0.00056515,120]
[321175996,1711941038459,-1560.38,0.00056515,120]
[321175998,1711941038468,-500.0,0.00056515,120]
[321175999,1711941038478,-500.0,0.00056515,120]
[321176000,1711941038487,-500.0,0.00056515,120]
[321176002,1711941038497,-500.0,0.00056515,120]
[321176003,1711941038505,-500.0,0.00056515,120]
[321176004,1711941038514,-588.639,0.00056515,120]
[321176005,1711941038524,-1226.0,0.00056515,120]
[321176006,1711941038533,-1265.086,0.00056515,120]
[321176007,1711941038541,-1280.849,0.00056515,120]
[321176008,1711941038551,-810.881,0.00056515,120]
[321176009,1711941038562,-281.802,0.00056515,120]
[321176010,1711941038571,-615.534,0.00056515,120]
[321176011,1711941038580,-437.272,0.00056515,120]
[321176012,1711941038589,-4172.47811852,0.00056535,2]
[321176013,1711941038598,-174.66,0.00056582,2]
[321176014,1711941038607,-276.8,0.00056608,120]
[321176015,1711941038616,-421.69,0.00056627,2]
[321176016,1711941038625,-421.69,0.00056776,2]
[321176017,1711941038634,-500.0,0.00056789,120]
[321176018,1711941038644,-1470.61,0.00056789,120]
[321176019,1711941038653,-500.0,0.00056789,120]
[321176020,1711941038662,-1747.16,0.00056789,120]
[321176021,1711941038672,-592.98370926,0.00056789,120]
[321176022,1711941038681,-500.0,0.00056789,120]
[321176023,1711941038690,-500.0,0.00056789,120]
[321176024,1711941038699,-588.38165076,0.00056789,120]
[321176025,1711941038708,-500.0,0.00056789,120]
[321176026,1711941038717,-940.97,0.00056789,120]
[321176027,1711941038727,-697.02,0.00056789,120]
[321176028,1711941038736,-500.0,0.00056789,120]
[321176029,1711941038746,-767.63,0.00056789,120]
[321176030,1711941038754,-500.0,0.00056789,120]
[321176031,1711941038764,-560.10972561,0.00056789,120]
[321176032,1711941038773,-1289.93,0.00056789,120]
[321176033,1711941038782,-500.0,0.00056789,120]
[321176034,1711941038791,-500.0,0.00056789,120]
[321176035,1711941038800,-500.0,0.00056789,120]
[321176036,1711941038809,-152.23946272,0.00056789,120]